[Event "Titled Tuesday Blitz December 7 2021"]
[White "Silich, Yahor"]
[Black "Maksimovic, Bojan"]
[WhiteFideId "13513656"]
[BlackFideId "14408120"]
[WhiteElo "2070"]
[BlackElo "2458"]
[Result "1-0"]
[Round "02"]
[TimeControl "180+1"]
[Date "2021.12.07"]
[WhiteClock "0:00:11"]
[BlackClock "0:00:08"]

1. e4 {[%clk 0:03:00]}  e5 {[%clk 0:02:59]} 2. Nf3 {[%clk 0:03:00]}  Nc6 {[%clk 0:02:59]} 3. Bc4 {[%clk 0:03:00]}  g6 {[%clk 0:02:59]} 4. O-O {[%clk 0:03:00]}  Bg7 {[%clk 0:02:59]} 5. c3 {[%clk 0:03:00]}  Nge7 {[%clk 0:02:57]} 6. d4 {[%clk 0:02:59]}  d6 {[%clk 0:02:56]} 7. h3 {[%clk 0:02:42]}  O-O {[%clk 0:02:55]} 8. Re1 {[%clk 0:02:41]}  h6 {[%clk 0:02:52]} 9. Be3 {[%clk 0:02:32]}  Kh7 {[%clk 0:02:48]} 10. Nbd2 {[%clk 0:02:31]}  f5 {[%clk 0:02:46]} 11. exf5 {[%clk 0:02:30]}  gxf5 {[%clk 0:02:45]} 12. dxe5 {[%clk 0:02:30]}  dxe5 {[%clk 0:02:41]} 13. Bc5 {[%clk 0:02:25]}  e4 {[%clk 0:02:35]} 14. Nh2 {[%clk 0:01:45]}  Ne5 {[%clk 0:02:30]} 15. Bb3 {[%clk 0:01:38]}  Nd3 {[%clk 0:02:29]} 16. Nxe4 {[%clk 0:01:27]}  fxe4 {[%clk 0:02:26]} 17. Bxe7 {[%clk 0:01:27]}  Qxe7 {[%clk 0:02:20]} 18. Qxd3 {[%clk 0:01:28]}  exd3 {[%clk 0:01:37]} 19. Rxe7 {[%clk 0:01:27]}  Bf5 {[%clk 0:01:37]} 20. Nf3 {[%clk 0:01:19]}  Rae8 {[%clk 0:01:19]} 21. Rae1 {[%clk 0:01:15]}  Rxe7 {[%clk 0:01:12]} 22. Rxe7 {[%clk 0:01:15]}  c5 {[%clk 0:00:54]} 23. Rxb7 {[%clk 0:00:53]}  Be4 {[%clk 0:00:50]} 24. Rd7 {[%clk 0:00:53]}  Bxf3 {[%clk 0:00:38]} 25. gxf3 {[%clk 0:00:54]}  Rxf3 {[%clk 0:00:37]} 26. Kg2 {[%clk 0:00:53]}  Rf4 {[%clk 0:00:32]} 27. Kg3 {[%clk 0:00:25]}  Re4 {[%clk 0:00:11]} 28. Rxd3 {[%clk 0:00:22]}  Re2 {[%clk 0:00:10]} 29. Rd7 {[%clk 0:00:16]}  Rxb2 {[%clk 0:00:08]} 30. Rxa7 {[%clk 0:00:16]}  Kg6 {[%clk 0:00:07]} 31. c4 {[%clk 0:00:16]}  Be5+ {[%clk 0:00:07]} 32. f4 {[%clk 0:00:14]}  Bd4 {[%clk 0:00:05]} 33. Re7 {[%clk 0:00:10]}  Kf5 {[%clk 0:00:05]} 34. Re8 {[%clk 0:00:06]}  Rd2 {[%clk 0:00:04]} 35. Ba4 {[%clk 0:00:04]}  Rd3+ {[%clk 0:00:05]} 36. Kg2 {[%clk 0:00:05]}  Kxf4 {[%clk 0:00:04]} 37. Bc6 {[%clk 0:00:04]}  Rc3 {[%clk 0:00:04]} 38. Rf8+ {[%clk 0:00:04]}  Ke3 {[%clk 0:00:03]} 39. Bd5 {[%clk 0:00:05]}  Rc2+ {[%clk 0:00:03]} 40. Kg3 {[%clk 0:00:05]}  Rxa2 {[%clk 0:00:04]} 41. Re8+ {[%clk 0:00:06]}  Kd2 {[%clk 0:00:05]} 42. Re6 {[%clk 0:00:05]}  Kc3 {[%clk 0:00:05]} 43. Rxh6 {[%clk 0:00:05]}  Rd2 {[%clk 0:00:05]} 44. Re6 {[%clk 0:00:05]}  Rd3+ {[%clk 0:00:05]} 45. Kg4 {[%clk 0:00:06]}  Re3 {[%clk 0:00:05]} 46. Rxe3+ {[%clk 0:00:04]}  Bxe3 {[%clk 0:00:05]} 47. h4 {[%clk 0:00:05]}  Kd4 {[%clk 0:00:05]} 48. Kf5 {[%clk 0:00:04]}  Bh6 {[%clk 0:00:05]} 49. h5 {[%clk 0:00:04]}  Be3 {[%clk 0:00:05]} 50. Kg6 {[%clk 0:00:04]}  Ke5 {[%clk 0:00:05]} 51. h6 {[%clk 0:00:04]}  Kd6 {[%clk 0:00:05]} 52. Kg7 {[%clk 0:00:04]}  Ke7 {[%clk 0:00:04]} 53. h7 {[%clk 0:00:04]}  Bd4+ {[%clk 0:00:05]} 54. Kg8 {[%clk 0:00:05]}  Bc3 {[%clk 0:00:05]} 55. h8=Q {[%clk 0:00:05]}  Bxh8 {[%clk 0:00:06]} 56. Kxh8 {[%clk 0:00:06]}  Kd6 {[%clk 0:00:06]} 57. Kg7 {[%clk 0:00:06]}  Ke5 {[%clk 0:00:07]} 58. Kf7 {[%clk 0:00:07]}  Kd6 {[%clk 0:00:07]} 59. Kf6 {[%clk 0:00:07]}  Kc7 {[%clk 0:00:08]} 60. Ke6 {[%clk 0:00:08]}  Kb6 {[%clk 0:00:08]} 61. Kd6 {[%clk 0:00:09]}  Ka7 {[%clk 0:00:07]} 62. Kxc5 {[%clk 0:00:09]}  Kb8 {[%clk 0:00:08]} 63. Kb6 {[%clk 0:00:10]}  Kc8 {[%clk 0:00:08]} 64. Be6+ {[%clk 0:00:09]}  Kb8 {[%clk 0:00:08]} 65. c5 {[%clk 0:00:10]}  Ka8 {[%clk 0:00:08]} 66. c6 {[%clk 0:00:11]}  Kb8 {[%clk 0:00:08]} 67. c7+ {[%clk 0:00:11]} 1-0


[Site "https://www.chess.com"]

[Event "Titled Tuesday Blitz December 7 2021"]
[White "Tasev, Dejan"]
[Black "Akbas, Umut Ata"]
[WhiteFideId "936618"]
[BlackFideId "44572646"]
[WhiteElo "2253"]
[BlackElo "1590"]
[Result "1/2-1/2"]
[Round "02"]
[TimeControl "180+1"]
[Date "2021.12.07"]
[WhiteClock "0:00:28"]
[BlackClock "0:00:39"]

1. e4 {[%clk 0:03:00]}  e5 {[%clk 0:02:56]} 2. Nf3 {[%clk 0:03:00]}  Nc6 {[%clk 0:02:57]} 3. Bc4 {[%clk 0:03:00]}  Bc5 {[%clk 0:02:57]} 4. d3 {[%clk 0:03:00]}  Nf6 {[%clk 0:02:56]} 5. h3 {[%clk 0:03:00]}  O-O {[%clk 0:02:56]} 6. Nc3 {[%clk 0:03:00]}  h6 {[%clk 0:02:51]} 7. Be3 {[%clk 0:03:00]}  Bb6 {[%clk 0:02:38]} 8. Bb3 {[%clk 0:03:00]}  d6 {[%clk 0:02:38]} 9. Qd2 {[%clk 0:03:00]}  Na5 {[%clk 0:02:37]} 10. g4 {[%clk 0:02:53]}  Nxb3 {[%clk 0:02:37]} 11. axb3 {[%clk 0:02:51]}  Bxe3 {[%clk 0:02:34]} 12. fxe3 {[%clk 0:02:48]}  d5 {[%clk 0:02:32]} 13. exd5 {[%clk 0:02:44]}  Nxd5 {[%clk 0:02:31]} 14. Nxd5 {[%clk 0:02:40]}  Qxd5 {[%clk 0:02:31]} 15. e4 {[%clk 0:02:41]}  Qc5 {[%clk 0:02:27]} 16. Kf1 {[%clk 0:01:39]}  b6 {[%clk 0:01:53]} 17. Kg2 {[%clk 0:01:38]}  a5 {[%clk 0:01:47]} 18. Rhf1 {[%clk 0:01:23]}  Be6 {[%clk 0:01:43]} 19. Rf2 {[%clk 0:01:20]}  f6 {[%clk 0:01:40]} 20. Qc3 {[%clk 0:01:07]}  Qxc3 {[%clk 0:01:36]} 21. bxc3 {[%clk 0:01:07]}  c5 {[%clk 0:01:25]} 22. c4 {[%clk 0:01:04]}  Rfd8 {[%clk 0:01:21]} 23. Ng1 {[%clk 0:01:00]}  Rd6 {[%clk 0:01:17]} 24. Ne2 {[%clk 0:01:00]}  Bd7 {[%clk 0:01:18]} 25. Nc3 {[%clk 0:00:59]}  Bc6 {[%clk 0:01:18]} 26. Kg3 {[%clk 0:00:59]}  Kf7 {[%clk 0:01:16]} 27. h4 {[%clk 0:00:59]}  Ke7 {[%clk 0:01:14]} 28. Ra3 {[%clk 0:00:49]}  Rh8 {[%clk 0:01:11]} 29. Rf1 {[%clk 0:00:44]}  h5 {[%clk 0:01:10]} 30. g5 {[%clk 0:00:43]}  fxg5 {[%clk 0:01:11]} 31. hxg5 {[%clk 0:00:42]}  h4+ {[%clk 0:01:12]} 32. Kh2 {[%clk 0:00:39]}  Rg6 {[%clk 0:01:11]} 33. Rf5 {[%clk 0:00:35]}  Kd6 {[%clk 0:01:06]} 34. Ra1 {[%clk 0:00:32]}  Bd7 {[%clk 0:01:00]} 35. Nb5+ {[%clk 0:00:31]}  Bxb5 {[%clk 0:00:50]} 36. cxb5 {[%clk 0:00:32]}  Rh5 {[%clk 0:00:44]} 37. Rg1 {[%clk 0:00:31]}  h3 {[%clk 0:00:42]} 38. Rg3 {[%clk 0:00:30]}  Ke6 {[%clk 0:00:42]} 39. c4 {[%clk 0:00:28]}  Kd6 {[%clk 0:00:39]} 1/2-1/2


[Site "https://www.chess.com"]

[Event "Titled Tuesday Blitz December 7 2021"]
[White "Vlassov, Nikolai"]
[Black "Savchenko, Boris"]
[WhiteFideId "4103360"]
[BlackFideId "4147332"]
[WhiteElo "2407"]
[BlackElo "2499"]
[Result "1-0"]
[Round "02"]
[TimeControl "180+1"]
[Date "2021.12.07"]
[WhiteClock "0:00:08"]
[BlackClock "0:00:01"]

1. e4 {[%clk 0:02:18]}  c5 {[%clk 0:02:56]} 2. c3 {[%clk 0:02:18]}  Nf6 {[%clk 0:02:17]} 3. e5 {[%clk 0:02:18]}  Nd5 {[%clk 0:02:17]} 4. d4 {[%clk 0:02:19]}  cxd4 {[%clk 0:02:17]} 5. cxd4 {[%clk 0:02:20]}  d6 {[%clk 0:02:17]} 6. Bc4 {[%clk 0:02:19]}  Nb6 {[%clk 0:02:15]} 7. Bb3 {[%clk 0:02:19]}  Nc6 {[%clk 0:02:14]} 8. e6 {[%clk 0:02:18]}  fxe6 {[%clk 0:02:06]} 9. Nf3 {[%clk 0:02:18]}  Na5 {[%clk 0:02:02]} 10. Bc2 {[%clk 0:02:14]}  Nd5 {[%clk 0:01:52]} 11. Ng5 {[%clk 0:02:02]}  g6 {[%clk 0:01:50]} 12. Nxh7 {[%clk 0:01:56]}  Bg7 {[%clk 0:01:42]} 13. Bxg6+ {[%clk 0:01:55]}  Kd7 {[%clk 0:01:42]} 14. Nc3 {[%clk 0:01:54]}  Qg8 {[%clk 0:01:31]} 15. Ng5 {[%clk 0:01:45]}  Nxc3 {[%clk 0:01:24]} 16. bxc3 {[%clk 0:01:43]}  Rh6 {[%clk 0:01:15]} 17. Bf7 {[%clk 0:01:35]}  Qf8 {[%clk 0:01:15]} 18. Qg4 {[%clk 0:01:32]}  Kc7 {[%clk 0:01:10]} 19. Bxe6 {[%clk 0:01:24]}  Qf6 {[%clk 0:01:00]} 20. Bxc8 {[%clk 0:01:18]}  Rxc8 {[%clk 0:01:00]} 21. O-O {[%clk 0:01:10]}  Rch8 {[%clk 0:00:57]} 22. h3 {[%clk 0:01:01]}  Rg6 {[%clk 0:00:57]} 23. Re1 {[%clk 0:00:56]}  Rf8 {[%clk 0:00:55]} 24. Ne6+ {[%clk 0:00:38]}  Kb8 {[%clk 0:00:50]} 25. Qe2 {[%clk 0:00:38]}  Rg8 {[%clk 0:00:46]} 26. Bf4 {[%clk 0:00:29]}  Qf5 {[%clk 0:00:32]} 27. Bg3 {[%clk 0:00:28]}  Bf6 {[%clk 0:00:32]} 28. Rab1 {[%clk 0:00:25]}  Qd5 {[%clk 0:00:29]} 29. Rb5 {[%clk 0:00:22]}  Qc4 {[%clk 0:00:26]} 30. Rxa5 {[%clk 0:00:21]}  Qxc3 {[%clk 0:00:27]} 31. Rb5 {[%clk 0:00:19]}  Rxg3 {[%clk 0:00:20]} 32. fxg3 {[%clk 0:00:18]}  Qxg3 {[%clk 0:00:21]} 33. Qe4 {[%clk 0:00:14]}  b6 {[%clk 0:00:19]} 34. Rb3 {[%clk 0:00:13]}  Qh4 {[%clk 0:00:12]} 35. Qxh4 {[%clk 0:00:12]}  Bxh4 {[%clk 0:00:13]} 36. Rf1 {[%clk 0:00:12]}  Rg6 {[%clk 0:00:12]} 37. d5 {[%clk 0:00:12]}  Bf6 {[%clk 0:00:12]} 38. Rbf3 {[%clk 0:00:12]}  Kb7 {[%clk 0:00:12]} 39. g4 {[%clk 0:00:11]}  Ka6 {[%clk 0:00:11]} 40. Rb1 {[%clk 0:00:10]}  Rg8 {[%clk 0:00:09]} 41. Kg2 {[%clk 0:00:10]}  Rc8 {[%clk 0:00:07]} 42. g5 {[%clk 0:00:11]}  Be5 {[%clk 0:00:07]} 43. Rf2 {[%clk 0:00:10]}  Rc3 {[%clk 0:00:07]} 44. h4 {[%clk 0:00:09]}  Rg3+ {[%clk 0:00:07]} 45. Kf1 {[%clk 0:00:09]}  Rh3 {[%clk 0:00:07]} 46. Ke2 {[%clk 0:00:09]}  Rxh4 {[%clk 0:00:07]} 47. Rg2 {[%clk 0:00:09]}  Ra4 {[%clk 0:00:07]} 48. Rd1 {[%clk 0:00:07]}  Rxa2+ {[%clk 0:00:07]} 49. Rd2 {[%clk 0:00:08]}  Ra4 {[%clk 0:00:05]} 50. g6 {[%clk 0:00:08]}  b5 {[%clk 0:00:06]} 51. g7 {[%clk 0:00:09]}  Bxg7 {[%clk 0:00:06]} 52. Rxg7 {[%clk 0:00:09]}  Re4+ {[%clk 0:00:06]} 53. Kd3 {[%clk 0:00:09]}  Re5 {[%clk 0:00:06]} 54. Kd4 {[%clk 0:00:09]}  b4 {[%clk 0:00:06]} 55. Rxe7 {[%clk 0:00:09]}  Rh5 {[%clk 0:00:05]} 56. Ra2+ {[%clk 0:00:09]}  Kb6 {[%clk 0:00:05]} 57. Rexa7 {[%clk 0:00:09]}  Rh4+ {[%clk 0:00:05]} 58. Kd3 {[%clk 0:00:09]}  b3 {[%clk 0:00:06]} 59. R2a6+ {[%clk 0:00:09]}  Kb5 {[%clk 0:00:06]} 60. Nd4+ {[%clk 0:00:09]}  Kc5 {[%clk 0:00:05]} 61. Nxb3+ {[%clk 0:00:06]}  Kxd5 {[%clk 0:00:05]} 62. Ra5+ {[%clk 0:00:06]}  Ke6 {[%clk 0:00:06]} 63. Ra4 {[%clk 0:00:07]}  Rh3+ {[%clk 0:00:05]} 64. Kc4 {[%clk 0:00:07]}  Rh1 {[%clk 0:00:04]} 65. Nd4+ {[%clk 0:00:07]}  Kf6 {[%clk 0:00:05]} 66. R4a5 {[%clk 0:00:07]}  Rc1+ {[%clk 0:00:04]} 67. Kd5 {[%clk 0:00:08]}  Rd1 {[%clk 0:00:05]} 68. R7a6 {[%clk 0:00:07]}  Kg5 {[%clk 0:00:05]} 69. Rxd6 {[%clk 0:00:08]}  Kf4 {[%clk 0:00:05]} 70. Rf6+ {[%clk 0:00:07]}  Kg4 {[%clk 0:00:06]} 71. Ra4 {[%clk 0:00:07]}  Kg5 {[%clk 0:00:05]} 72. Rf8 {[%clk 0:00:07]}  Kg6 {[%clk 0:00:05]} 73. Ra7 {[%clk 0:00:08]}  Re1 {[%clk 0:00:04]} 74. Raf7 {[%clk 0:00:07]}  Rd1 {[%clk 0:00:02]} 75. Rf2 {[%clk 0:00:07]}  Kg7 {[%clk 0:00:01]} 76. R8f3 {[%clk 0:00:08]}  Rg1 {[%clk 0:00:01]} 77. Ne6+ {[%clk 0:00:08]} 1-0


[Site "https://www.chess.com"]

[Event "Titled Tuesday Blitz December 7 2021"]
[White "Vypkhaniuk, Ihor"]
[Black "Sadhwani, Raunak"]
[WhiteFideId "14112256"]
[BlackFideId "35093487"]
[WhiteElo "2327"]
[BlackElo "2562"]
[Result "1-0"]
[Round "02"]
[TimeControl "180+1"]
[Date "2021.12.07"]
[WhiteClock "0:00:07"]
[BlackClock "0:00:08"]

1. d4 {[%clk 0:03:00]}  Nf6 {[%clk 0:02:59]} 2. Nf3 {[%clk 0:02:58]}  g6 {[%clk 0:02:59]} 3. Nc3 {[%clk 0:02:56]}  Bg7 {[%clk 0:02:57]} 4. e4 {[%clk 0:02:55]}  d6 {[%clk 0:02:57]} 5. Be2 {[%clk 0:02:54]}  O-O {[%clk 0:02:58]} 6. O-O {[%clk 0:02:53]}  a6 {[%clk 0:02:58]} 7. a4 {[%clk 0:02:53]}  Nc6 {[%clk 0:02:59]} 8. h3 {[%clk 0:02:43]}  e5 {[%clk 0:02:57]} 9. dxe5 {[%clk 0:02:36]}  Nxe5 {[%clk 0:02:58]} 10. Nxe5 {[%clk 0:02:35]}  dxe5 {[%clk 0:02:58]} 11. Bg5 {[%clk 0:02:31]}  Be6 {[%clk 0:02:44]} 12. Qxd8 {[%clk 0:02:17]}  Rfxd8 {[%clk 0:02:45]} 13. Rfd1 {[%clk 0:02:17]}  Rd4 {[%clk 0:02:30]} 14. Be3 {[%clk 0:02:11]}  c5 {[%clk 0:02:30]} 15. f3 {[%clk 0:01:43]}  Nh5 {[%clk 0:02:25]} 16. Bxd4 {[%clk 0:01:39]}  exd4 {[%clk 0:02:26]} 17. Nd5 {[%clk 0:01:36]}  Rd8 {[%clk 0:02:19]} 18. Bc4 {[%clk 0:01:26]}  Kf8 {[%clk 0:02:14]} 19. a5 {[%clk 0:01:20]}  Bh6 {[%clk 0:02:02]} 20. b3 {[%clk 0:01:14]}  f5 {[%clk 0:01:46]} 21. g4 {[%clk 0:01:14]}  fxg4 {[%clk 0:01:10]} 22. fxg4 {[%clk 0:01:12]}  Bxd5 {[%clk 0:01:08]} 23. Bxd5 {[%clk 0:01:09]}  Be3+ {[%clk 0:01:07]} 24. Kh1 {[%clk 0:01:02]}  Nf4 {[%clk 0:01:06]} 25. Bxb7 {[%clk 0:00:52]}  h5 {[%clk 0:01:07]} 26. gxh5 {[%clk 0:00:47]}  Rd6 {[%clk 0:01:03]} 27. Rf1 {[%clk 0:00:40]}  Ke7 {[%clk 0:00:49]} 28. hxg6 {[%clk 0:00:36]}  Rxg6 {[%clk 0:00:50]} 29. Rf3 {[%clk 0:00:34]}  Nh5 {[%clk 0:00:30]} 30. Raf1 {[%clk 0:00:31]}  Ng3+ {[%clk 0:00:30]} 31. Rxg3 {[%clk 0:00:31]}  Rxg3 {[%clk 0:00:30]} 32. Bxa6 {[%clk 0:00:31]}  Bd2 {[%clk 0:00:26]} 33. Kh2 {[%clk 0:00:26]}  Rg7 {[%clk 0:00:26]} 34. Bd3 {[%clk 0:00:25]}  Bxa5 {[%clk 0:00:26]} 35. Rf5 {[%clk 0:00:23]}  Bc7+ {[%clk 0:00:27]} 36. Kh1 {[%clk 0:00:22]}  Bd6 {[%clk 0:00:23]} 37. Rf2 {[%clk 0:00:18]}  Be5 {[%clk 0:00:21]} 38. Rg2 {[%clk 0:00:19]}  Rh7 {[%clk 0:00:21]} 39. Kg1 {[%clk 0:00:18]}  Rxh3 {[%clk 0:00:21]} 40. Kf2 {[%clk 0:00:18]}  Rh6 {[%clk 0:00:20]} 41. Ke2 {[%clk 0:00:17]}  Kd6 {[%clk 0:00:21]} 42. Rf2 {[%clk 0:00:17]}  Rh7 {[%clk 0:00:17]} 43. Rf5 {[%clk 0:00:18]}  Re7 {[%clk 0:00:16]} 44. Rf2 {[%clk 0:00:18]}  Kc7 {[%clk 0:00:16]} 45. Rg2 {[%clk 0:00:18]}  Kb6 {[%clk 0:00:17]} 46. Rg6+ {[%clk 0:00:19]}  Ka5 {[%clk 0:00:17]} 47. Bc4 {[%clk 0:00:17]}  Rh7 {[%clk 0:00:17]} 48. Bd3 {[%clk 0:00:07]}  Rh5 {[%clk 0:00:12]} 49. Kf3 {[%clk 0:00:07]}  Kb4 {[%clk 0:00:07]} 50. Kg4 {[%clk 0:00:06]}  Rh8 {[%clk 0:00:07]} 51. Kf5 {[%clk 0:00:07]}  Bc7 {[%clk 0:00:07]} 52. Rc6 {[%clk 0:00:07]}  Rh5+ {[%clk 0:00:07]} 53. Ke6 {[%clk 0:00:06]}  Bf4 {[%clk 0:00:05]} 54. Rb6+ {[%clk 0:00:03]}  Kc3 {[%clk 0:00:06]} 55. Rc6 {[%clk 0:00:03]}  Re5+ {[%clk 0:00:06]} 56. Kd7 {[%clk 0:00:04]}  Kd2 {[%clk 0:00:06]} 57. Kc8 {[%clk 0:00:03]}  Ke3 {[%clk 0:00:06]} 58. Kb7 {[%clk 0:00:03]}  Bg5 {[%clk 0:00:06]} 59. Kb6 {[%clk 0:00:02]}  Bd8+ {[%clk 0:00:07]} 60. Kb5 {[%clk 0:00:03]}  Be7 {[%clk 0:00:08]} 61. Rc8 {[%clk 0:00:02]}  Kd2 {[%clk 0:00:08]} 62. Kc4 {[%clk 0:00:03]}  Rg5 {[%clk 0:00:06]} 63. Rc7 {[%clk 0:00:03]}  Re5 {[%clk 0:00:07]} 64. Rd7 {[%clk 0:00:03]}  Kc1 {[%clk 0:00:06]} 65. Rd5 {[%clk 0:00:04]}  Re6 {[%clk 0:00:07]} 66. e5 {[%clk 0:00:03]}  Kb2 {[%clk 0:00:06]} 67. Bf5 {[%clk 0:00:03]}  Rh6 {[%clk 0:00:07]} 68. Rxc5 {[%clk 0:00:04]}  Bxc5 {[%clk 0:00:06]} 69. Kxc5 {[%clk 0:00:04]}  Rh5 {[%clk 0:00:07]} 70. Bd3 {[%clk 0:00:05]}  Kc3 {[%clk 0:00:07]} 71. Kd5 {[%clk 0:00:05]}  Rg5 {[%clk 0:00:08]} 72. Kd6 {[%clk 0:00:05]}  Kb4 {[%clk 0:00:08]} 73. e6 {[%clk 0:00:06]}  Rg8 {[%clk 0:00:08]} 74. e7 {[%clk 0:00:06]}  Rh8 {[%clk 0:00:08]} 75. Kd7 {[%clk 0:00:07]} 1-0


[Site "https://www.chess.com"]

[Event "Titled Tuesday Blitz December 7 2021"]
[White "Wadsworth, Matthew J"]
[Black "Bacrot, Etienne"]
[WhiteFideId "415804"]
[BlackFideId "605506"]
[WhiteElo "2293"]
[BlackElo "2673"]
[Result "0-1"]
[Round "02"]
[TimeControl "180+1"]
[Date "2021.12.07"]
[WhiteClock "0:00:23"]
[BlackClock "0:00:35"]

1. c4 {[%clk 0:03:00]}  e5 {[%clk 0:02:59]} 2. g3 {[%clk 0:02:59]}  Nf6 {[%clk 0:02:54]} 3. Bg2 {[%clk 0:02:59]}  c6 {[%clk 0:02:54]} 4. d4 {[%clk 0:02:59]}  exd4 {[%clk 0:02:53]} 5. Qxd4 {[%clk 0:02:58]}  d5 {[%clk 0:02:48]} 6. Nf3 {[%clk 0:02:56]}  Be7 {[%clk 0:02:45]} 7. cxd5 {[%clk 0:02:54]}  cxd5 {[%clk 0:02:45]} 8. O-O {[%clk 0:02:46]}  Nc6 {[%clk 0:02:43]} 9. Qa4 {[%clk 0:02:46]}  O-O {[%clk 0:02:43]} 10. Nc3 {[%clk 0:02:44]}  Qb6 {[%clk 0:02:32]} 11. Qb5 {[%clk 0:02:42]}  Qxb5 {[%clk 0:02:18]} 12. Nxb5 {[%clk 0:02:43]}  Bf5 {[%clk 0:02:11]} 13. Nbd4 {[%clk 0:02:18]}  Be4 {[%clk 0:02:09]} 14. Bf4 {[%clk 0:02:04]}  Rac8 {[%clk 0:01:51]} 15. Rac1 {[%clk 0:01:56]}  Nxd4 {[%clk 0:01:44]} 16. Nxd4 {[%clk 0:01:55]}  Bc5 {[%clk 0:01:44]} 17. Nb3 {[%clk 0:01:29]}  Bb6 {[%clk 0:01:39]} 18. Be5 {[%clk 0:01:25]}  Rxc1 {[%clk 0:01:31]} 19. Rxc1 {[%clk 0:01:24]}  Bxf2+ {[%clk 0:01:30]} 20. Kf1 {[%clk 0:01:08]}  Be3 {[%clk 0:01:19]} 21. Rc7 {[%clk 0:00:53]}  Ng4 {[%clk 0:01:18]} 22. Bxe4 {[%clk 0:00:52]}  dxe4 {[%clk 0:01:18]} 23. Bd6 {[%clk 0:00:47]}  Rd8 {[%clk 0:01:06]} 24. h3 {[%clk 0:00:42]}  Bb6 {[%clk 0:00:46]} 25. Re7 {[%clk 0:00:25]}  Ne3+ {[%clk 0:00:44]} 26. Ke1 {[%clk 0:00:23]}  Nf5 {[%clk 0:00:35]} 0-1


[Site "https://www.chess.com"]

[Event "Titled Tuesday Blitz December 7 2021"]
[White "Yilmaz, Mustafa"]
[Black "Atakhan, Abtin"]
[WhiteFideId "6302718"]
[BlackFideId "22502203"]
[WhiteElo "2568"]
[BlackElo "2119"]
[Result "1-0"]
[Round "02"]
[TimeControl "180+1"]
[Date "2021.12.07"]
[WhiteClock "0:00:05"]
[BlackClock "0:00:04"]

1. c4 {[%clk 0:03:00]}  e6 {[%clk 0:02:58]} 2. Nc3 {[%clk 0:03:00]}  d5 {[%clk 0:02:58]} 3. d4 {[%clk 0:03:01]}  Bb4 {[%clk 0:02:58]} 4. cxd5 {[%clk 0:02:57]}  exd5 {[%clk 0:02:57]} 5. Bf4 {[%clk 0:02:55]}  c6 {[%clk 0:02:44]} 6. e3 {[%clk 0:02:55]}  Ne7 {[%clk 0:02:42]} 7. Bd3 {[%clk 0:02:54]}  Bf5 {[%clk 0:02:40]} 8. Ne2 {[%clk 0:02:54]}  Bxd3 {[%clk 0:02:38]} 9. Qxd3 {[%clk 0:02:54]}  Ng6 {[%clk 0:02:39]} 10. Bg3 {[%clk 0:02:54]}  h5 {[%clk 0:02:38]} 11. h3 {[%clk 0:02:53]}  h4 {[%clk 0:02:37]} 12. Bh2 {[%clk 0:02:54]}  Nd7 {[%clk 0:02:38]} 13. O-O {[%clk 0:02:53]}  O-O {[%clk 0:02:37]} 14. Rad1 {[%clk 0:02:22]}  Re8 {[%clk 0:02:28]} 15. a3 {[%clk 0:02:10]}  Bxc3 {[%clk 0:02:28]} 16. Nxc3 {[%clk 0:02:09]}  Nf6 {[%clk 0:02:27]} 17. Rfe1 {[%clk 0:02:07]}  Qd7 {[%clk 0:02:23]} 18. f3 {[%clk 0:02:00]}  Re6 {[%clk 0:02:15]} 19. e4 {[%clk 0:01:59]}  dxe4 {[%clk 0:02:16]} 20. fxe4 {[%clk 0:01:59]}  Rae8 {[%clk 0:02:13]} 21. e5 {[%clk 0:02:00]}  Nd5 {[%clk 0:02:06]} 22. Ne4 {[%clk 0:02:00]}  Ngf4 {[%clk 0:02:01]} 23. Qf3 {[%clk 0:01:57]}  Ng6 {[%clk 0:01:23]} 24. Nc5 {[%clk 0:01:32]}  Qe7 {[%clk 0:01:22]} 25. Rc1 {[%clk 0:01:19]}  Qg5 {[%clk 0:00:55]} 26. Nxb7 {[%clk 0:01:02]}  Qd2 {[%clk 0:00:53]} 27. Qf2 {[%clk 0:00:45]}  Qxf2+ {[%clk 0:00:47]} 28. Kxf2 {[%clk 0:00:46]}  Rb8 {[%clk 0:00:47]} 29. Nc5 {[%clk 0:00:37]}  Rxb2+ {[%clk 0:00:47]} 30. Kf3 {[%clk 0:00:37]}  Re7 {[%clk 0:00:38]} 31. Rb1 {[%clk 0:00:37]}  Ra2 {[%clk 0:00:36]} 32. Rb3 {[%clk 0:00:33]}  Kh7 {[%clk 0:00:28]} 33. Ne4 {[%clk 0:00:33]}  f6 {[%clk 0:00:25]} 34. Nd6 {[%clk 0:00:29]}  fxe5 {[%clk 0:00:24]} 35. dxe5 {[%clk 0:00:29]}  Re6 {[%clk 0:00:17]} 36. Re4 {[%clk 0:00:25]}  Nde7 {[%clk 0:00:14]} 37. Nf7 {[%clk 0:00:24]}  Kg8 {[%clk 0:00:11]} 38. Ng5 {[%clk 0:00:24]}  Nf8 {[%clk 0:00:08]} 39. Nxe6 {[%clk 0:00:18]}  Nxe6 {[%clk 0:00:09]} 40. Ra4 {[%clk 0:00:14]}  Nc5 {[%clk 0:00:08]} 41. Rb8+ {[%clk 0:00:14]}  Kh7 {[%clk 0:00:06]} 42. Rxa7 {[%clk 0:00:15]}  Nd5 {[%clk 0:00:05]} 43. e6 {[%clk 0:00:12]}  Nxe6 {[%clk 0:00:05]} 44. Be5 {[%clk 0:00:12]}  Kg6 {[%clk 0:00:05]} 45. Rb2 {[%clk 0:00:06]}  Ra1 {[%clk 0:00:04]} 46. Re2 {[%clk 0:00:06]}  Rf1+ {[%clk 0:00:03]} 47. Rf2 {[%clk 0:00:06]}  Re1 {[%clk 0:00:03]} 48. Re2 {[%clk 0:00:04]}  Rf1+ {[%clk 0:00:04]} 49. Ke4 {[%clk 0:00:05]}  Ng5+ {[%clk 0:00:04]} 50. Kd3 {[%clk 0:00:05]}  Rf2 {[%clk 0:00:04]} 51. Rxg7+ {[%clk 0:00:04]}  Kh5 {[%clk 0:00:03]} 52. Rxf2 {[%clk 0:00:04]}  Ne6 {[%clk 0:00:04]} 53. Rf5+ {[%clk 0:00:04]}  Kh6 {[%clk 0:00:04]} 54. Rg4 {[%clk 0:00:05]}  Ne7 {[%clk 0:00:04]} 55. Rf6+ {[%clk 0:00:04]}  Kh7 {[%clk 0:00:04]} 56. Rxe6 {[%clk 0:00:05]}  Nf5 {[%clk 0:00:04]} 57. Rg5 {[%clk 0:00:05]} 1-0


[Site "https://www.chess.com"]

[Event "Titled Tuesday Blitz December 7 2021"]
[White "Zhigalko, Sergei"]
[Black "Gubsky, Egor"]
[WhiteFideId "13502956"]
[BlackFideId "4194055"]
[WhiteElo "2662"]
[BlackElo "2258"]
[Result "1-0"]
[Round "02"]
[TimeControl "180+1"]
[Date "2021.12.07"]
[WhiteClock "0:01:08"]
[BlackClock "0:00:36"]

1. e4 {[%clk 0:03:00]}  c5 {[%clk 0:02:56]} 2. Nf3 {[%clk 0:03:00]}  Nc6 {[%clk 0:02:56]} 3. c3 {[%clk 0:03:01]}  d5 {[%clk 0:02:56]} 4. exd5 {[%clk 0:03:01]}  Qxd5 {[%clk 0:02:57]} 5. d4 {[%clk 0:03:02]}  Bg4 {[%clk 0:02:57]} 6. dxc5 {[%clk 0:03:02]}  Qxd1+ {[%clk 0:02:55]} 7. Kxd1 {[%clk 0:03:03]}  e5 {[%clk 0:02:55]} 8. b4 {[%clk 0:03:00]}  a5 {[%clk 0:02:56]} 9. b5 {[%clk 0:02:55]}  Nd8 {[%clk 0:02:41]} 10. Be3 {[%clk 0:02:47]}  Rc8 {[%clk 0:02:38]} 11. c6 {[%clk 0:02:29]}  bxc6 {[%clk 0:02:35]} 12. b6 {[%clk 0:02:23]}  Rb8 {[%clk 0:02:22]} 13. Nd2 {[%clk 0:02:20]}  Nf6 {[%clk 0:02:12]} 14. Kc2 {[%clk 0:02:00]}  Bf5+ {[%clk 0:02:05]} 15. Kd1 {[%clk 0:01:59]}  Nd5 {[%clk 0:02:00]} 16. Nxe5 {[%clk 0:01:57]}  Nxe3+ {[%clk 0:01:57]} 17. fxe3 {[%clk 0:01:57]}  Rxb6 {[%clk 0:01:55]} 18. e4 {[%clk 0:01:54]}  Be6 {[%clk 0:01:49]} 19. Kc2 {[%clk 0:01:48]}  Rb8 {[%clk 0:01:34]} 20. Bc4 {[%clk 0:01:46]}  Bd6 {[%clk 0:01:30]} 21. Nd3 {[%clk 0:01:41]}  Ke7 {[%clk 0:01:26]} 22. Rab1 {[%clk 0:01:24]}  Nb7 {[%clk 0:01:16]} 23. Bxe6 {[%clk 0:01:20]}  Kxe6 {[%clk 0:01:17]} 24. Nc4 {[%clk 0:01:21]}  a4 {[%clk 0:01:14]} 25. Rb6 {[%clk 0:01:16]}  Rhc8 {[%clk 0:00:45]} 26. Rhb1 {[%clk 0:01:11]}  Nd8 {[%clk 0:00:43]} 27. Nxd6 {[%clk 0:01:09]}  Rxb6 {[%clk 0:00:42]} 28. Nxc8 {[%clk 0:01:09]}  Ra6 {[%clk 0:00:36]} 29. Nc5+ {[%clk 0:01:08]} 1-0


[Site "https://www.chess.com"]